Cogmind - Beta 14 @@@ ROGUE MODE // 2024.11.24 @ 08:39:06 Player: akira Result: Destroyed by as-27196 with Assembled Maul Performance ------------- Evolutions (2) 1000 Regions Visited (5) 1000 Robots Destroyed (67) 335 Value Destroyed (2261) 2261 Prototype IDs (5) 100 Alien Tech Used (0) 0 Bonus (700) 700 TOTAL SCORE: 5396 Bonus ------- Entered Garrisons 200 Used RIF Installer 500 Cogmind --------- Core Integrity 0/550 Matter 0/300 Energy 100/100 System Corruption 27% Temperature Cool (0) Movement Core (50) Location -8/Garrison Parts ------- > --- POWER (1) -------- (None) > --- PROPULSION (3) --- (None) > --- UTILITY (5) ------ (None) > --- WEAPON (2) ------- (None) > --- INVENTORY (5) ---- Light Treads Light Treads Carbon-fiber Leg Titanium Leg Gauss Rifle Peak State ------------ > --- POWER ------------ Heavy Ion Engine > --- PROPULSION ------- Carbon-fiber Leg Carbon-fiber Leg Carbon-fiber Leg > --- UTILITY ---------- Improved Heat Sink Large Storage Unit Reaction Control System Hardened Medium Armor Plating Hacking Suite > --- WEAPON ----------- Gauss Rifle Remote Datajack > --- INVENTORY -------- Light Nuclear Core Light Treads Light Treads Light Treads Improved Treads Carbon-fiber Leg Carbon-fiber Leg Carbon-fiber Leg Titanium Leg Improved Medium Laser Improved Medium Laser Minigun Rocket Launcher Concussive RPG Great Axe [Rating: 36] Favorites ----------- Power Heavy Ion Engine Engine Heavy Ion Engine Power Core Light Nuclear Core Propulsion Light Treads Treads Light Treads Leg Aluminum Leg Utility Large Storage Unit Device Sensor Array Storage Large Storage Unit Processor Signal Interpreter Hackware Hacking Suite Protection Power Shielding Weapon Improved Medium Laser Energy Gun Improved Medium Laser Energy Cannon Advanced Beam Cannon Ballistic Gun Light Assault Rifle Launcher Rocket Launcher Special Weapon Remote Datajack Slashing Weapon Great Axe Special Melee Weapon Datajack Build | -11 -10 -9 -9 -8 -8 ------- Run | Yrd Mat Mat Min Mat Gar Slots Evolved 4 | . . 2 . 2 . Power . | . . . . . . Propulsion 1 | . . . . 1 . Utility 3 | . . 2 . 1 . Weapon . | . . . . . . Parts Attached 88 | 7 17 18 3 24 19 Power 7 | 2 2 2 . . 1 Engine 6 | 2 2 2 . . . Core 1 | . . . . . 1 Reactor . | . . . . . . Propulsion 28 | 2 7 6 . 9 4 Treads 14 | . 2 6 . 5 1 Leg 14 | 2 5 . . 4 3 Wheel . | . . . . . . Hover . | . . . . . . Flight . | . . . . . . Utility 23 | 1 4 5 3 6 4 Device 11 | . . 3 2 4 2 Storage 3 | 1 1 1 . . . Processor 3 | . 1 1 . . 1 Hackware 1 | . . . . 1 . Protection 5 | . 2 . 1 1 1 Artifact . | . . . . . . Weapon 30 | 2 4 5 . 9 10 Energy Gun 11 | . 1 4 . 4 2 Energy Cannon 1 | . . . . 1 . Ballistic Gun 10 | 2 2 . . 3 3 Ballistic Cannon . | . . . . . . Launcher 4 | . . 1 . 1 2 Special Weapon 1 | . . . . . 1 Impact Weapon . | . . . . . . Slashing Weapon 2 | . . . . . 2 Piercing Weapon . | . . . . . . Special Melee Weapon 1 | . 1 . . . . Unidentified Prototypes 5 | . . 2 1 2 . Parts Lost 22 | . 4 . . 2 16 Power 3 | . 1 . . . 2 Propulsion 3 | . . . . . 3 Utility 9 | . 1 . . 2 6 Weapon 7 | . 2 . . . 5 Highest Loss Streak 12 | . 3 . . 1 12 To Critical Strikes . | . . . . . . Average Slot Usage (%) 93 | . 97 91 90 98 82 Engine 10 | . 12 11 11 9 7 Treads 15 | . 4 22 22 20 . Leg 8 | . 23 . . 6 23 Device 9 | . . 11 11 17 11 Storage 11 | . 14 11 11 9 8 Processor 6 | . 9 4 11 1 2 Hackware 2 | . . . . 7 7 Protection 5 | . 4 10 2 9 5 Energy Gun 13 | . 1 20 22 14 1 Ballistic Gun 7 | . 24 . . 2 10 Peak Build Rating 36 | 6 7 18 29 34 36 Average Rating 19 | 4 6 12 26 25 28 On Entrance 13 | . 6 6 18 17 34 Naked Turns 16 | . . . . . 16 Heaviest Build 45 | 13 28 37 42 44 45 Greatest Support 63 | 20 40 40 40 63 45 Greatest Overweight (x) 7 | 1 . . 1 . 7 Average Overweight (x) . | . . . . . . Largest Inventory Capacity 15 | 8 15 15 15 15 15 Average Capacity 13 | 6 9 15 15 15 14 Most Carried 15 | 4 9 15 15 15 15 Average Carried 12 | 2 7 13 14 14 13 Final Capacity 15 | 8 15 15 15 15 5 Final Carried 15 | 4 8 15 14 15 5 Class Distribution -------------------- 86% | Mutant 13% | Scavenger-Mutant Dominant Class ---------------- Mutant | -10/Materials Mutant | -9/Materials Mutant | -9/Mines Mutant | -8/Materials Mutant | -8/Garrison Resources | -11 -10 -9 -9 -8 -8 ----------- Run | Yrd Mat Mat Min Mat Gar Matter Collected 1373 | 246 341 180 43 333 230 Remotely . | . . . . . . Salvage Created 2672 | . 655 554 18 1148 297 Parts 132 | . 30 41 1 36 24 Haulers Intercepted 2 | . 1 1 . . . Recyclers Shooed . | . . . . . . Parts Field Recycled . | . . . . . . Retrieved Matter . | . . . . . . Parts Self-Destructed . | . . . . . . Prevented . | . . . . . . Kills | -11 -10 -9 -9 -8 -8 ------- Run | Yrd Mat Mat Min Mat Gar Combat Hostiles Destroyed 78 | . 14 12 2 22 28 Melee 2 | . . . . . 2 Guns 55 | . 14 11 2 21 7 AOE 20 | . . 1 . . 19 Classes Destroyed 11 | . 4 3 . 1 3 Hauler 2 | . 1 1 . . . Operator 3 | . 1 1 . 1 . Watcher 4 | . 1 3 . . . Swarmer 9 | . . 4 2 . 3 Cutter 2 | . . . . . 2 Grunt 31 | . 14 3 . 14 . Brawler 3 | . . 1 . 2 . Sentry 9 | . . 4 . 5 . Hunter 2 | . . . . 1 1 Programmer 2 | . . . . . 2 Assembled 20 | . . . . . 20 Best Kill Streak 19 | . 3 5 1 5 19 Combat Bots Only 19 | . 3 4 1 5 19 Max Kills in Single Turn 5 | . 1 2 1 1 5 Gunslinging . | . . . . . . Exploded 5 | . . 1 . . 5 Melee 1 | . . . . . 1 Uniques/NPCs Destroyed 1 | . . . 1 . . YI-UF0 (-9/Mines) Combat | -11 -10 -9 -9 -8 -8 -------- Run | Yrd Mat Mat Min Mat Gar Hostile Shots Fired 408 | . 98 42 21 90 157 Missed 106 | . 24 11 4 33 34 Damage Taken 4745 | . 928 361 410 838 2208 Core 855 | . 190 97 11 70 487 Absorbed by Shields 116 | . . 6 . 110 . Redirected to Shielding 42 | . 17 15 . 10 . Regen/Repaired (Parts) 83 | . . . . 83 . Core Remaining (%) 65 | 100 24 . 73 . . Volleys Fired 234 | . 81 33 5 68 47 Largest 2 | . 2 2 2 2 2 Hottest 112 | . 50 112 112 112 112 Shots Fired 408 | . 139 57 10 130 72 Gun 391 | . 139 54 10 130 58 Cannon . | . . . . . . Launcher 16 | . . 3 . . 13 Special 1 | . . . . . 1 Kinetic 182 | . 122 . . 17 43 Thermal 209 | . 17 54 10 113 15 Explosive 16 | . . 3 . . 13 Electromagnetic . | . . . . . . Robot Hit Streak 23 | . 23 11 4 14 9 Robot Miss Streak 5 | . 3 3 3 3 5 Penetration Max 1 | . . . . . 1 Secondary Targets 2 | . . . . 2 . Max Gunslinging Chain 1 | . . . . 1 . Shots Hit Robots 294 | . 108 39 6 95 46 Core Hits 161 | . 45 24 2 46 44 Critical Kills 2 | . 2 . . . . Critical Parts Destroyed 1 | . 1 . . . . Critical Strikes 15 | . 5 4 . 6 . Burn 12 | . 2 4 . 6 . Destroy 3 | . 3 . . . . Melee Attacks 14 | . 1 . . . 13 Impact . | . . . . . . Slashing 13 | . . . . . 13 Piercing . | . . . . . . Sneak Attacks 1 | . 1 . . . . Combat Hostiles . | . . . . . . Follow-up Attacks . | . . . . . . Damage Inflicted 5544 | . 992 662 101 1635 2154 Guns 4062 | . 992 558 101 1635 776 Cannons . | . . . . . . Explosions 1308 | . . 104 . . 1204 Melee 173 | . . . . . 173 Ramming 1 | . . . . . 1 Kinetic 1547 | . 822 . . 157 568 Thermal 2515 | . 170 558 101 1478 208 Explosive 1308 | . . 104 . . 1204 Electromagnetic . | . . . . . . Impact . | . . . . . . Slashing 173 | . . . . . 173 Piercing . | . . . . . . Highest Corruption 27 | . . . . 4 27 Average Corruption 5 | . . . . 4 8 Corruption Purged . | . . . . . . Corruption Blocked . | . . . . . . Effects 43 | . . . . 27 16 Message Errors 4 | . . . . 4 . Matter Fused 12 | . . . . 7 5 Heat Flow Errors 5 | . . . . 3 2 Energy Discharges 6 | . . . . 3 3 Parts Rejected 1 | . . . . . 1 Data Loss (minor) 4 | . . . . 4 . Data Loss (major) 4 | . . . . 2 2 Misfires 5 | . . . . 3 2 Weapon Failures 2 | . . . . 1 1 Overload Shots . | . . . . . . Overflow Damage 50 | . . . . . 50 Projectiles . | . . . . . . Explosions 50 | . . . . . 50 Melee . | . . . . . . Knockbacks . | . . . . . . Impact . | . . . . . . Kinetic . | . . . . . . Secondary . | . . . . . . Self-Inflicted Damage 144 | . . . . . 144 Shots 5 | . . . . . 5 Rammed . | . . . . . . Targets Rammed 1 | . . . . . 1 Kicked 1 | . . . . . 1 Crushed . | . . . . . . Highest Temperature 331 | . 126 273 180 331 250 Average Temperature 74 | . 23 66 78 93 101 Received Heat Transfer 1719 | . 531 152 9 367 660 Effects 8 | . . 3 . 5 . Energy Bleed 1 | . . . . 1 . Interference 6 | . . 3 . 3 . Matter Decay 1 | . . . . 1 . Siege Activations . | . . . . . . Robots Corrupted . | . . . . . . Combat Hostiles . | . . . . . . Parts Fried . | . . . . . . Impact Corruptions . | . . . . . . Robots Melted 1 | . . . . 1 . Combat Hostiles 1 | . . . . 1 . Parts Melted 15 | . 1 3 . 10 1 Heat Transferred 6660 | . 629 1739 222 3626 444 Parts Sabotaged . | . . . . . . Parts Stolen . | . . . . . . Parts Stripped . | . . . . . . Power Chain Reactions . | . . . . . . Alert | -11 -10 -9 -9 -8 -8 ------- Run | Yrd Mat Mat Min Mat Gar Peak Influence 429 | . 210 354 120 213 429 Initial 120 | . . 68 120 5 59 Average 103 | . 75 211 39 88 254 Maximum Alert Level 2 | . 1 1 . 1 2 Low Security (%) 84 | 100 99 46 100 96 27 Level 1 14 | . . 53 . 3 57 Level 2 1 | . . . . . 14 Level 3 . | . . . . . . Level 4 . | . . . . . . Level 5 . | . . . . . . High Security . | . . . . . . Max Security . | . . . . . . Squads Dispatched 11 | . 5 3 . 3 . Investigation 5 | . 4 1 . . . Extermination . | . . . . . . Reinforcement 6 | . 1 2 . 3 . Assault . | . . . . . . Garrison . | . . . . . . Intercept . | . . . . . . Searches Triggered . | . . . . . . Construction Impeded . | . . . . . . Haulers Reinforced . | . . . . . . Active Scanning Responses . | . . . . . . Cargo Convoy Interrupts . | . . . . . . Stealth | -11 -10 -9 -9 -8 -8 --------- Run | Yrd Mat Mat Min Mat Gar Distress Signals 9 | . 2 1 . 6 . Communications Jammed . | . . . . . . Distress Signals . | . . . . . . Times Spotted 139 | . 33 26 9 35 36 Peak Tracking Total 20 | . 4 7 3 8 20 Tactical Retreats 12 | . 3 3 3 1 2 Traps | -11 -10 -9 -9 -8 -8 ------- Run | Yrd Mat Mat Min Mat Gar Traps Triggered 4 | . 3 1 . . . Indirectly . | . . . . . . Trap Hack Attempts . | . . . . . . Triggered . | . . . . . . Disarmed . | . . . . . . Reprogrammed . | . . . . . . Reused . | . . . . . . Traps Extracted . | . . . . . . Installed . | . . . . . . Triggered . | . . . . . . Machines | -11 -10 -9 -9 -8 -8 ---------- Run | Yrd Mat Mat Min Mat Gar Machines Disabled 1 | . . . . . 1 Max in Single Turn 1 | . . . . . 1 Machines Repaired . | . . . . . . Machines Dismantled . | . . . . . . Machines Sabotaged . | . . . . . . Overloaded Fab Kills . | . . . . . . Hacking | -11 -10 -9 -9 -8 -8 --------- Run | Yrd Mat Mat Min Mat Gar Machines Accessed 13 | . 5 1 2 3 2 Terminals 9 | . 5 . 1 1 2 Fabricators . | . . . . . . Repair Stations 1 | . . . . 1 . Recycling Units . | . . . . . . Scanalyzers 1 | . . 1 . . . Garrison Access 1 | . . . . 1 . Total Hacks 33 | . 18 2 2 8 3 Successful 19 | . 8 2 2 5 2 Failed 14 | . 10 . . 3 1 Catastrophic 1 | . 1 . . . . Database Lockouts . | . . . . . . Manual 5 | . 5 . . . . Terminals 24 | . 18 . 1 2 3 Fabricators . | . . . . . . Repair Stations 4 | . . . . 4 . Recycling Units . | . . . . . . Scanalyzers 2 | . . 2 . . . Garrison Access 2 | . . . . 2 . Terminal Hacks 13 | . 8 . 2 1 2 Record 2 | . 2 . . . . Robot Analysis 4 | . 4 . . . . Open Door 1 | . . . 1 . . Alert Level 1 | . 1 . . . . Unreport Threat 1 | . . . . 1 . Dispatch Records 1 | . . . 1 . . Zone Layout 1 | . 1 . . . . Garrison Registry 1 | . . . . . 1 Patrol Navigation 1 | . . . . . 1 Fabricator Hacks . | . . . . . . Repair Station Hacks 3 | . . . . 3 . Scan Component 2 | . . . . 2 . Repair 1 | . . . . 1 . Recycling Unit Hacks . | . . . . . . Scanalyzer 2 | . . 2 . . . Insert Component 1 | . . 1 . . . Analyze 1 | . . 1 . . . Garrison Access Hacks 1 | . . . . 1 . Unlock Access 1 | . . . . 1 . Unauthorized Hacks . | . . . . . . Terminals . | . . . . . . Fabricators . | . . . . . . Repair Stations . | . . . . . . Recycling Units . | . . . . . . Scanalyzers . | . . . . . . Garrison Access . | . . . . . . Data Cores Recovered . | . . . . . . Used . | . . . . . . Hacking Detections 10 | . 5 . 1 2 2 Full Trace Events 3 | . 2 . . 1 . Feedback Events . | . . . . . . Feedback Blocked . | . . . . . . Robot Schematics Acquired . | . . . . . . Robots Built . | . . . . . . Authchips . | . . . . . . Time . | . . . . . . Total Robot Build Rating . | . . . . . . Part Schematics Acquired 1 | . . 1 . . . Parts Built . | . . . . . . Authchips . | . . . . . . Time . | . . . . . . Total Part Build Rating . | . . . . . . Parts Repaired 1 | . . . . 1 . Time 64 | . . . . 64 . Parts Recycled . | . . . . . . Recycled Matter . | . . . . . . Retrieved Matter . | . . . . . . Retrieved Components . | . . . . . . Parts Scanalyzed 1 | . . 1 . . . Part Schematics Acquired 1 | . . 1 . . . Parts Damaged . | . . . . . . Bothacking | -11 -10 -9 -9 -8 -8 ------------ Run | Yrd Mat Mat Min Mat Gar Used RIF Installer 1 | . . . . . 1 Robots Hacked 1 | . 1 . . . . Non-combat 1 | . 1 . . . . Combat . | . . . . . . Robot Hacks Applied 1 | . 1 . . . . find_recycling 1 | . 1 . . . . Relay Couplers Released . | . . . . . . Fabnet Peak Effective % . | . . . . . . Robots Rewired . | . . . . . . Allies Hacked . | . . . . . . Hacks Repelled . | . . . . . . Allies | -11 -10 -9 -9 -8 -8 -------- Run | Yrd Mat Mat Min Mat Gar Total Allies 1 | . . . 1 . . Largest Group 1 | . . . 1 . . Highest-Rated Group 31 | . . . 31 . . Highest-Rated Ally 31 | . . . 31 . . Total Orders . | . . . . . . Ally Attacks 17 | . . . 17 . . Total Damage 84 | . . . 84 . . Kills 1 | . . . 1 . . Allies Corrupted . | . . . . . . Allies Melted . | . . . . . . Intel | -11 -10 -9 -9 -8 -8 ------- Run | Yrd Mat Mat Min Mat Gar Robot Analysis Total 4 | . 4 . . . . Derelict Logs Recovered 1 | . . . 1 . . Drone Launches 12 | . . . 12 . . Drone Recoveries . | . . . . . . Exploration | -11 -10 -9 -9 -8 -8 ------------- Run | Yrd Mat Mat Min Mat Gar Turns Passed 7002 | 59 1740 1169 1971 1531 532 Spaces Moved 2946 | 41 791 507 730 685 192 Core 7 | 6 . . . . 1 Treads 1852 | . 143 507 730 467 5 Legs 1087 | 35 648 . . 218 186 Wheels . | . . . . . . Hover . | . . . . . . Flight . | . . . . . . Fastest Speed 50 | 50 120 160 160 120 120 Average Speed 159 | 112 127 160 217 147 125 Slowest Speed 400 | 120 160 160 240 160 400 Overloaded Moves . | . . . . . . Propulsion Burnouts . | . . . . . . Robots Hopped . | . . . . . . Cave-ins Triggered . | . . . . . . Exploration Rate (%) 51 | 5 89 46 93 56 19 Regions Visited 5 Branch Regions 1 Pre-discovered Areas . | . . . . . . Known Exits Taken 3 | . . 1 1 1 . Unknown Exits Taken 2 | 1 1 . . . . Scrap Searched 1 | . . . 1 . . Spaces Dug 2 | . . . . . 2 Terrain Destroyed 106 | . . 31 . . 75 Melee 2 | . . . . . 2 Projectile . | . . . . . . AOE 104 | . . 31 . . 73 Terrain Rammed . | . . . . . . Walls Destroyed . | . . . . . . Machines Disabled . | . . . . . . Actions | -11 -10 -9 -9 -8 -8 --------- Run | Yrd Mat Mat Min Mat Gar Total 4849 | 50 1406 810 1108 1083 392 Wait 1476 | . 499 226 361 273 117 Move 2942 | 40 790 506 729 685 192 Hop . | . . . . . . Pick Up 45 | 3 9 14 4 15 . Fast Attach 17 | 6 1 2 1 3 4 Attach 18 | . 3 3 2 4 6 Detach . | . . . . . . Swap 53 | 1 13 13 . 17 9 Drop 49 | . 9 13 6 18 3 Fire 234 | . 81 33 5 68 47 Melee 14 | . 1 . . . 13 Ram . | . . . . . . Kick 1 | . . . . . 1 Crush . | . . . . . . Escape Stasis . | . . . . . . Rewire . | . . . . . . Trap . | . . . . . . Miscellaneous . | . . . . . . Route ------- -11/Scrapyard -10/Materials (discovered 3 exits: *Mat x2 / [*Min]) -9/Materials (discovered 3 exits: *Mat / *Min / *Sto) -9/Mines (discovered 2 exits: *Mat x2) -8/Materials -8/Garrison (discovered 3 exits: [Mat x3]) History --------- Turn | Location | Event 16 | -11/Scrapyard | Discovered new exit (range 16) 60 | -11/Scrapyard | Entered Materials 207 | -10/Materials | Discovered new exit (range 7) 303 | -10/Materials | Build established: Mutant 1346 | -10/Materials | Discovered new exit (range 4) 1546 | -10/Materials | Discovered new exit (range 15) 1605 | -10/Materials | Core integrity fell below 50% 1665 | -10/Materials | Lost 3 parts (1p2w) 1800 | -10/Materials | Entered another Materials area 1800 | -9/Materials | Evolved 2 slots: Utility x2 2502 | -9/Materials | Discovered new exit (range 10) 2521 | -9/Materials | Discovered new exit (range 6) 2575 | -9/Materials | Identified exit to Storage 2581 | -9/Materials | Identified exit to Materials 2961 | -9/Materials | Discovered new exit (range 6) 2967 | -9/Materials | Identified exit to Mines 2969 | -9/Materials | Entered Mines 2978 | -9/Mines | Found the Drone Emporium 2988 | -9/Mines | Found Prototype Device 2990 | -9/Mines | Identified Bomb Drone Bay 3116 | -9/Mines | YI-UF0 nonchalantly dropped a Grenade Launcher on the ground 3246 | -9/Mines | Discovered exit to Materials (range 5) 3251 | -9/Mines | Received a Mining Laser from a helpful Derelict 3329 | -9/Mines | Discovered exit to Materials (range 12) 3345 | -9/Mines | Allies destroyed YI-UF0 3376 | -9/Mines | Lost 6 allies 3860 | -9/Mines | Learned Materials garrison access intel 4211 | -9/Mines | Found DCF Scrap (13 items) 4940 | -9/Mines | Entered Materials 4940 | -8/Materials | Evolved 2 slots: Propulsion x1, Utility x1 4941 | -8/Materials | Loaded intel: 1 garrison access location 5570 | -8/Materials | Repaired Broken Imp. Medium Laser? 5737 | -8/Materials | Build established: Scavenger-Mutant 6424 | -8/Materials | Build established: Mutant 6471 | -8/Materials | Identified exit to Garrison 6471 | -8/Materials | Entered Garrison 6501 | -8/Garrison | Triggered checkpoint 6693 | -8/Garrison | Discovered new exit (range 58) 6693 | -8/Garrison | Discovered new exit (range 57) 6693 | -8/Garrison | Discovered new exit (range 32) 6761 | -8/Garrison | Installed Relay Interface Framework 6762 | -8/Garrison | Assembled breached garrison interior 6856 | -8/Garrison | Destroyed 19 combat bots 6909 | -8/Garrison | System corruption reached 10% 6921 | -8/Garrison | Core integrity fell below 50% 6987 | -8/Garrison | Lost 12 parts (2p3n3u4w) 6991 | -8/Garrison | Core integrity fell below 20% 7003 | -8/Garrison | Destroyed by as-27196 with Assembled Maul Last Messages --------------- 06926_ Carbon-fiber Leg destroyed. 06926_ System corrupted by crushing effect (+3). 06928_ Carbon-fiber Leg destroyed. 06928_ System corrupted by crushing effect (+3). 06929_ Lgt. Nuclear Core destroyed. 06935_ System corrupted: Matter fused (-10). 06935_ The unstable cave ceiling collapses. 06938_ as-63468 destroyed. 06938_ Great Axe destroyed. 06938_ System corrupted by crushing effect (+5). 06949_ Imp. Medium Laser destroyed. 06949_ Carbon-fiber Leg destroyed. 06950_ System corrupted: Energy discharge (-34). 06952_ The unstable cave ceiling collapses. 06956_ Imp. Medium Laser destroyed. 06968_ System corrupted: Energy discharge (-24). 06984_ System corrupted: Lgt. Treads rejected. 06987_ Lrg. Storage Unit destroyed. 06987_ System corrupted by crushing effect (+1). 07001_ System corrupted: Matter fused (-10). Map ----- +----------------------------------------------------+ | ??# == [[ #???# #??## ##""""###+##?# #? | | ??########### *###[#???# #???# ## #?# #??# #? | | ????????????# !*#?# ##### ### #######?# #??# #? | | ????????????##[##?# + #??????# #### ## | | ?????????????#*#??# ##### #### ??????# | | ?????????????# #??# #???# # ??????###### ## | | ???????????###*#??# #???# # ????????????# #? | | ???????????# #/#### ##### ## ????????????# #? | | ???????????## = ! ##???#####???# #? | | ???????????###*# ????#"T"#####+## | | ???????????## =# ###### # # ##???#" | | ????????????## # #?????# ## # "#???###### ##### | | ?????????????# # #?????# # ## T#????????# #???? | | ?????????????### #?????# ## ""#????????# ###?? | | ???????????????# ####### # ## ###????????# " ### | | ???????????????# + # #??????????# " + | | ???????????????# ######### # #??????????# " ### | | ?????????????### #????### ####????????# ###?? | | ?????????????# #????# | ""#????????# #???? | | ?????????????# #????#" = "#????????# #???? | | ?????????????# #????#" "##????????# #???? | | ?????????????######????# %"#???????### #???? | | ???????????????????????#"" " ##??????#"# #???? | | ???????????????????????###### "#??????#" #???? | | ????????????????????????#"""" ^ "#??????#" #???? | | ????????????????????????#@aaaa ""#??????#" #???? | | ????????????????????????#""""= """#??????#"# #???? | | ????????????????????????###########??????#####???? | | ?????????????????????????????????????????????????? | | ?????????????????????????????????????????????????? | | ?????????????????????????????????????????????????? | | ?????????????????????????????????????????????????? | | ?????????????????????????????????????????????????? | | ?????????????????????????????????????????????????? | | ?????????????????????????????????????????????????? | | ?????????????????????????????????????????????????? | | ?????????????????????????????????????????????????? | | ?????????????????????????????????????????????????? | | ?????????????????????????????????????????????????? | | ?????????????????????????????????????????????????? | | ?????????????????????????????????????????????????? | | ?????????????????????????????????????????????????? | | ?????????????????????????????????????????????????? | | | | | | | | | | | | | | | +----------------------------------------------------+ Best States ------------- Heat Dissipation 45 Energy Generation 14 Energy Capacity 280 Matter Stores 300 Matter Capacity 300 Sight Range 16 Robot Scan Range 15 Terrain Scan Density 10 Armor Coverage 225 Power Shielding 33 Evasion (%) 63 Targeting Accuracy 5 Target Analysis 5 Recoil Reduction 3 Offensive Hacking 10 Item Schematics ----------------- Imp. Treads | -9/Materials | Scanalyzed Robot Schematics ------------------ None Fabricated ------------ Nothing Alien Tech Used ----------------- None Achievements -------------- Hunted Challenges ------------ None Game ------ Seed FieldFieldPrototype Manual? 0 Play Time 01:07:32 Cumulative 32.0 hours Start 2024.11.24 @ 07:30:17 End 2024.11.24 @ 08:39:06 Sessions 1 Manual Loads 0 Difficulty Rogue Special Mode None Game No. 45 Rogue 45 Adventurer 0 Explorer 0 Win Type - Total 0 Types 0/0/0/0/0/0/0/0/0 Lore% 9 Gallery% 21 Achievement% 23 Wizard Run 0 Options --------- Layout 1 ASCII 0 Keyboard 0 Movement Mouse Keybinds 0 Fullscreen 2 Font 16/SmallcapsGlow Map View 55x38 Zoom Use 2% Tactical HUD 1 Map Filters NONE Filters NONE Steam 1 RUN: 4aa7a5c0-914c-410a-bdd9-86ea0457a9b5